Cogmind - Beta 10.2 @@@ ROGUE MODE // 2020.11.08 @ 01:38:54 // Halloween2020/ForbiddenLore Player: Ty Piggbottom Result: Destroyed by G-34 Mercenary with Small Laser Performance ------------- Evolutions (0) 0 Regions Visited (1) 200 Robots Destroyed (27) 135 Value Destroyed (607) 607 Prototype IDs (6) 120 Alien Tech Used (0) 0 Bonus (4) 4 TOTAL SCORE: 1066 Bonus ------- High Alert Combat Kills 4 Cogmind --------- Core Integrity 0/250 Matter 300/300 Energy 92/100 System Corruption 0% Temperature Cool (400) Movement Rolling (100) Location -10/Materials Parts ------- > --- POWER (1) -------- (None) > --- PROPULSION (2) --- Compact Wheel > --- UTILITY (2) ------ Small Storage Unit Small Storage Unit > --- WEAPON (2) ------- Small Laser > --- INVENTORY (8) ---- Ion Engine Light Treads Small Storage Unit Sensor Array Datajack Mining Laser Hammer Peak State ------------ > --- POWER ------------ Ion Engine > --- PROPULSION ------- Compact Wheel Compact Wheel > --- UTILITY ---------- Small Storage Unit Small Storage Unit > --- WEAPON ----------- Medium Laser Light Assault Rifle > --- INVENTORY -------- Ion Engine Light Treads [Rating: 7] Favorites ----------- Power Ion Engine Engine Ion Engine Propulsion Compact Wheel Wheel Compact Wheel Utility Small Storage Unit Storage Small Storage Unit Protection Light Armor Plating Weapon Medium Laser Energy Gun Medium Laser Energy Cannon Beam Cannon Ballistic Gun Light Assault Rifle Launcher Grenade Launcher Special Weapon Mining Laser Impact Weapon Hammer Build | -11 -10 ------- Run | Scr Mat Slots Evolved . | . . Power . | . . Propulsion . | . . Utility . | . . Weapon . | . . Parts Attached 30 | 7 23 Power 4 | 1 3 Engine 4 | 1 3 Core . | . . Reactor . | . . Propulsion 6 | 2 4 Treads . | . . Leg . | . . Wheel 6 | 2 4 Hover . | . . Flight . | . . Utility 4 | 2 2 Device . | . . Storage 3 | 2 1 Processor . | . . Hackware . | . . Protection 1 | . 1 Artifact . | . . Weapon 16 | 2 14 Energy Gun 7 | 1 6 Energy Cannon 3 | . 3 Ballistic Gun 2 | 1 1 Ballistic Cannon . | . . Launcher 2 | . 2 Special Weapon 1 | . 1 Impact Weapon 1 | . 1 Slashing Weapon . | . . Piercing Weapon . | . . Special Melee Weapon . | . . Unidentified Prototypes . | . . Parts Lost 10 | . 10 Power 2 | . 2 Propulsion 2 | . 2 Utility 1 | . 1 Weapon 5 | . 5 Highest Loss Streak 4 | . 4 Average Slot Usage (%) 94 | . 94 Engine 11 | . 11 Wheel 27 | . 27 Storage 24 | . 24 Protection 3 | . 3 Energy Gun 12 | . 12 Energy Cannon 3 | . 3 Ballistic Gun 1 | . 1 Launcher 1 | . 1 Impact Weapon 6 | . 6 Naked Turns . | . . Heaviest Build 19 | 16 19 Greatest Support 32 | 32 32 Greatest Overweight (x) . | . . Average Overweight (x) . | . . Largest Inventory Capacity 8 | 8 8 Average Capacity 7 | 6 7 Most Carried 8 | 3 8 Average Carried 5 | 2 5 Final Capacity 8 | 8 8 Final Carried 7 | 2 7 Class Distribution -------------------- 89% | Mutant 10% | Scavenger-Mutant Dominant Class ---------------- Mutant | -10/Materials Resources | -11 -10 ----------- Run | Scr Mat Matter Collected 491 | 273 218 Remotely . | . . Salvage Created 790 | 129 661 Parts 47 | 3 44 Haulers Intercepted . | . . Recyclers Shooed 2 | 1 1 Parts Field Recycled . | . . Retrieved Matter . | . . Parts Self-Destructed . | . . Prevented . | . . Kills | -11 -10 ------- Run | Scr Mat Combat Hostiles Destroyed 17 | . 17 Melee 5 | . 5 Guns 6 | . 6 Cannons 5 | . 5 AOE 1 | . 1 Classes Destroyed 7 | 2 5 Builder 1 | . 1 Tunneler 1 | 1 . Recycler 3 | 1 2 Operator 3 | . 3 Watcher 2 | . 2 Swarmer 6 | . 6 Grunt 11 | . 11 Best Kill Streak 5 | 1 5 Combat Bots Only 5 | . 5 Max Kills in Single Turn 3 | 1 3 Gunslinging . | . . Exploded 1 | . 1 Melee 1 | . 1 Uniques/NPCs Destroyed . | . . Combat | -11 -10 -------- Run | Scr Mat Damage Taken 1060 | . 1060 Core 257 | . 257 Absorbed by Shields . | . . Core Remaining (%) 100 | 100 . Volleys Fired 61 | 9 52 Largest 2 | 2 2 Hottest 120 | 70 120 Shots Fired 89 | 12 77 Gun 67 | 12 55 Cannon 18 | . 18 Launcher 2 | . 2 Special 2 | . 2 Kinetic 5 | 3 2 Thermal 82 | 9 73 Explosive 2 | . 2 Electromagnetic . | . . Robot Hit Streak 9 | 2 9 Robot Miss Streak 7 | 2 7 Penetration Max . | . . Secondary Targets 2 | . 2 Max Gunslinging Chain 1 | . 1 Shots Hit Robots 80 | 6 74 Core Hits 37 | 3 34 Critical Hits . | . . Critical Kills . | . . Critical Parts Destroyed . | . . Melee Attacks 44 | . 44 Impact 44 | . 44 Slashing . | . . Piercing . | . . Sneak Attacks 2 | . 2 Combat Hostiles . | . . Follow-up Attacks . | . . Damage Inflicted 1648 | 61 1587 Guns 457 | 61 396 Cannons 208 | . 208 Explosions 403 | . 403 Melee 580 | . 580 Ramming . | . . Kinetic 6 | . 6 Thermal 1016 | 61 955 Explosive 46 | . 46 Electromagnetic . | . . Impact 580 | . 580 Slashing . | . . Piercing . | . . Highest Corruption . | . . Average Corruption . | . . Corruption Purged . | . . Overload Shots . | . . Overflow Damage 187 | . 187 Projectiles . | . . Explosions 147 | . 147 Melee 40 | . 40 Knockbacks 4 | . 4 Impact 4 | . 4 Kinetic . | . . Secondary . | . . Self-Inflicted Damage 158 | . 158 Shots 3 | . 3 Rammed . | . . Targets Rammed . | . . Kicked . | . . Crushed . | . . Highest Temperature 470 | 50 470 Average Temperature 116 | 22 129 Received Heat Transfer 420 | . 420 Effects 4 | . 4 Shutdowns 2 | . 2 Energy Bleed 1 | . 1 Damage (minor) 1 | . 1 Siege Activations . | . . Robots Corrupted . | . . Combat Hostiles . | . . Parts Fried 3 | . 3 Impact Corruptions 3 | . 3 Robots Melted . | . . Combat Hostiles . | . . Parts Melted 5 | 2 3 Heat Transferred 1920 | 185 1735 Parts Sabotaged . | . . Parts Stolen . | . . Parts Stripped . | . . Power Chain Reactions . | . . Missiles Intercepted . | . . Alert | -11 -10 ------- Run | Scr Mat Peak Influence 450 | 10 450 Initial 6 | . 6 Average 201 | 2 222 Maximum Alert Level 2 | . 2 Low Security (%) 50 | 100 44 Level 1 47 | . 53 Level 2 1 | . 2 Level 3 . | . . Level 4 . | . . Level 5 . | . . High Security . | . . Max Security . | . . Squads Dispatched 5 | . 5 Investigation 2 | . 2 Extermination . | . . Reinforcement 3 | . 3 Assault . | . . Garrison . | . . Intercept . | . . Construction Impeded . | . . Haulers Reinforced . | . . Stealth | -11 -10 --------- Run | Scr Mat Distress Signals 2 | . 2 Communications Jammed . | . . Distress Signals . | . . Times Spotted 34 | . 34 Peak Tracking Total 5 | . 5 Tactical Retreats 4 | . 4 Traps | -11 -10 ------- Run | Scr Mat Traps Triggered 2 | . 2 Indirectly . | . . Trap Hack Attempts . | . . Triggered . | . . Disarmed . | . . Reprogrammed . | . . Reused . | . . Traps Extracted . | . . Installed . | . . Triggered . | . . Machines | -11 -10 ---------- Run | Scr Mat Machines Disabled 5 | . 5 Max in Single Turn 5 | . 5 Machines Sabotaged . | . . Garrisons Compromised . | . . Overloaded Fab Kills . | . . Fab Network Shutdowns . | . . Hacking | -11 -10 --------- Run | Scr Mat Machines Accessed 4 | . 4 Terminals 3 | . 3 Fabricators . | . . Repair Stations . | . . Recycling Units 1 | . 1 Scanalyzers . | . . Garrison Access . | . . Total Hacks 13 | . 13 Successful 10 | . 10 Failed 3 | . 3 Catastrophic . | . . Database Lockouts . | . . Manual . | . . Terminals 9 | . 9 Fabricators . | . . Repair Stations . | . . Recycling Units 4 | . 4 Scanalyzers . | . . Garrison Access . | . . Terminal Hacks 7 | . 7 Prototype ID Bank 3 | . 3 Alert Level 1 | . 1 Hauler Manifests 1 | . 1 Zone Layout 2 | . 2 Fabricator Hacks . | . . Repair Station Hacks . | . . Recycling Unit Hacks 3 | . 3 Report Inventory 2 | . 2 Retrieve Components 1 | . 1 Scanalyzer . | . . Garrison Access Hacks . | . . Unauthorized Hacks . | . . Terminals . | . . Fabricators . | . . Repair Stations . | . . Recycling Units . | . . Scanalyzers . | . . Garrison Access . | . . Data Cores Recovered . | . . Used . | . . Hacking Detections 3 | . 3 Full Trace Events . | . . Feedback Events . | . . Feedback Blocked . | . . Robot Schematics Acquired . | . . Robots Built . | . . Matter . | . . Time . | . . Total Robot Build Rating . | . . Part Schematics Acquired . | . . Parts Built . | . . Matter . | . . Time . | . . Total Part Build Rating . | . . Parts Repaired . | . . Time . | . . Parts Recycled . | . . Recycled Matter . | . . Retrieved Matter . | . . Retrieved Components 1 | . 1 Parts Scanalyzed . | . . Part Schematics Acquired . | . . Parts Damaged . | . . Bothacking | -11 -10 ------------ Run | Scr Mat Used RIF Installer . | . . Robots Hacked . | . . Non-combat . | . . Combat . | . . Robot Hacks Applied . | . . Relay Couplers Released . | . . Robots Rewired . | . . Allies Hacked . | . . Hacks Repelled . | . . Allies | -11 -10 -------- Run | Scr Mat Total Allies . | . . Largest Group . | . . Highest-Rated Group . | . . Highest-Rated Ally . | . . Total Orders . | . . Ally Attacks . | . . Total Damage . | . . Kills . | . . Allies Corrupted . | . . Allies Melted . | . . Intel | -11 -10 ------- Run | Scr Mat Robot Analysis Total . | . . Derelict Logs Recovered . | . . Drone Launches . | . . Drone Recoveries . | . . Exploration | -11 -10 ------------- Run | Scr Mat Turns Passed 900 | 87 813 Spaces Moved 586 | 53 533 Core 1 | 1 . Treads . | . . Legs . | . . Wheels 585 | 52 533 Hover . | . . Flight . | . . Fastest Speed 50 | 50 80 Average Speed 91 | 99 90 Slowest Speed 100 | 100 100 Overloaded Moves . | . . Propulsion Burnouts . | . . Robots Hopped . | . . Cave-ins Triggered . | . . Exploration Rate (%) 32 | 5 59 Regions Visited 1 Branch Regions . Pre-discovered Areas . | . . Known Exits Taken . | . . Unknown Exits Taken 1 | 1 . Scrap Searched . | . . Spaces Dug 2 | . 2 Terrain Destroyed 29 | . 29 Melee . | . . Projectile 2 | . 2 AOE 27 | . 27 Terrain Rammed . | . . Walls Destroyed . | . . Machines Disabled . | . . Actions | -11 -10 --------- Run | Scr Mat Total 789 | 74 715 Wait 46 | . 46 Move 585 | 52 533 Hop . | . . Pick Up 14 | 5 9 Fast Attach 9 | 5 4 Attach 7 | 2 5 Detach 2 | . 2 Swap 14 | . 14 Drop 7 | 1 6 Fire 61 | 9 52 Melee 44 | . 44 Ram . | . . Kick . | . . Crush . | . . Escape Stasis . | . . Rewire . | . . Trap . | . . Miscellaneous . | . . Route ------- -11/Scrapyard -10/Materials (discovered 2 exits: [*Mat] / [*Min]) History --------- Turn | Location | Event 16 | -11/Scrapyard | Discovered new exit (range 16) 88 | -11/Scrapyard | Entered Materials 95 | -10/Materials | Discovered new exit (range 12) 297 | -10/Materials | Core integrity fell below 50% 310 | -10/Materials | Build established: Mutant 486 | -10/Materials | Discovered new exit (range 7) 634 | -10/Materials | Core integrity fell below 20% 719 | -10/Materials | Lost 3 parts (1n1u1w) 901 | -10/Materials | Destroyed by G-34 Mercenary with Small Laser Last Messages --------------- 00877_ S-10 Pest destroyed. 00878_ Power failure, Ion Engine shutdown. 00878_ Beam Cannon destroyed. 00878_ K-01 Serf collects debris. 00880_ Acquired 13 matter. 00882_ K-01 Serf collects debris. 00884_ U-05 Engineer builds a Door. 00886_ K-01 Serf collects debris. 00890_ Power failure, Ion Engine shutdown. 00891_ Overheating: Ion Engine damaged (-5). 00893_ K-01 Serf collects debris. 00894_ Com. Wheel destroyed. 00895_ U-05 Engineer lays Concrete. 00896_ K-01 Serf collects debris. 00898_ Overheating: Energy bleed (-29). 00898_ Beam Cannon destroyed. 00899_ G-34 Mercenary destroyed. 00899_ K-01 Serf collects debris. 00899_ Ion Engine destroyed. 00900_ Acquired 6 matter. Map ----- +----------------------------------------------------+ | =##?????# # ????????????????? | | ################ % ????????????????? | | # [ #?# ????????????????? | | # [] #?# ???????????????? | | # #?# ! ???????????????? | | # #?# ??????????????? | | # #?# ??????????????? | | ##+############# ??????????????? | | # # # "" #??????????????? | | + "" # # # #??????????????? | | """" # "" # ##### "" +??????????????????? | | """" # "T + #???# """ ???????????????????? | | T" """" # "" # #???# ??"" ???????????????????? | | # "" # #???????? ????????????????????? | | / # #?????????????????????????????? | | ####### ###### ###########???????????????????? | | ########+#####?# ## #???????????????????? | | ## #?# ## """ #???????????????????? | | ## #?# ## """ "" #???????????????????? | | ### #?# ## """ T" #???????????????????? | | ##### #?# ## "" #???????????????????? | | ##### ### ## #???????????????????? | | ## !! ## ###+######## #######?????????? | | ## !! ## u ????????? | | [= ## ! ## %=g! u u ????????? | | [= ## ## *=%=@ uk ????????? | | ############ #%k*###############??????????? | | #??????????#######[[ #????????????????????????? | | #????????????????# #????????????????????????? | | #????????????????# #????????????????????????? | | #????????????????# #????????????????????????? | | ####????????????????# #????????????????????????? | | #####???????????????# #????????????????????????? | | #???????????????# #????????????????????????? | | #???????????????# #????????????????????????? | | #???????????????# #????????????????????????? | | #???????????????# ????????????????????????? | | ####????????????????# ????????????????????????? | | ????????????????????# ????????????????????????? | | ????????????????????####?????????????????????????? | | ?????????????????????????????????????????????????? | | ?????????????????????????????????????????????????? | | ?????????????????????????????????????????????????? | | ?????????????????????????????????????????????????? | | ?????????????????????????????????????????????????? | | #########????????????????????????????????????????? | | #????????????????????????????????????????? | | #????????????????????????????????????????? | | #????????????????????????????????????????? | | = #????????????????????????????????????????? | +----------------------------------------------------+ Best States ------------- Heat Dissipation 25 Energy Generation 10 Energy Capacity 250 Matter Stores 300 Matter Capacity 300 Sight Range 16 Terrain Scan Density 10 Armor Coverage 150 Evasion (%) 44 Item Schematics ----------------- None Robot Schematics ------------------ None Fabricated ------------ Nothing Alien Tech Used ----------------- None Achievements -------------- None Challenges ------------ None Game ------ Seed AntimissileCoolantCorpse Manual? 0 Play Time 00:21:54 Cumulative 138.6 hours Start 2020.11.08 @ 01:00:16 End 2020.11.08 @ 01:38:54 Sessions 1 Manual Loads 0 Difficulty Rogue Special Mode Halloween2020/ForbiddenLore Game No. 54 Rogue 54 Adventurer 0 Explorer 0 Win Type - Total 0 Types 0/0/0/0/0/0/0/0/0 Lore% 9 Gallery% 21 Achievement% 19 Wizard Run 0 Options --------- ASCII 0 Keyboard 1 Movement Vi Keybinds 0 Fullscreen 1 Font 12/Terminus Map View 83x54 Tactical HUD 1 Map Filters NONE Filters NONE Steam 1 RUN: 66438792-ecf0-4dfb-b12e-f475737d5bfa